Workbook

Sheet STOCKLIJST 2020
B1: AANKOOP
B2: TOTALE VOORRAADWAARDE: | C2: VOORRAADARTIKELEN: | D2: OPSLAGLOCATIE OPZOEKEN
B3: =SUM(Voorraadlijst[VOORRAADWAARDE]) -> 3456.8 | C3: =COUNTA(Voorraadlijst[BESCHRIJVING]) -> 11
B4: ARTIKEL | C4: BESCHRIJVING | D4: EENHEID | E4: HOEV | F4: KOSTEN | G4: VOORRAADWAARDE
B5: EIKEN OP BOOL | C5: EIKEN PLANKEN | D5: Per stuk | E5: 20 | F5: 30 | G5: =Voorraadlijst[[#This Row],[HOEV]]*Voorraadlijst[[#This Row],[KOSTEN]] -> 600
B6: SPAANPLAATSCHROEVEN | C6: 4 X 30 | D6: DOOS 200 STUKS | E6: 1 | F6: 7.8 | G6: =Voorraadlijst[[#This Row],[HOEV]]*Voorraadlijst[[#This Row],[KOSTEN]] -> 7.8
B7: MK676554 | C7: 4 x 40 | D7: Per stuk | E7: 10 | F7: 5 | G7: =Voorraadlijst[[#This Row],[HOEV]]*Voorraadlijst[[#This Row],[KOSTEN]] -> 50
B8: YE98767 | C8: 4 x 50 | D8: Doos (10 stuks) | E8: 40 | F8: 15 | G8: =Voorraadlijst[[#This Row],[HOEV]]*Voorraadlijst[[#This Row],[KOSTEN]] -> 600
B9: XR23423 | C9: Artikel 5 | D9: Per stuk | E9: 12 | F9: 26 | G9: =Voorraadlijst[[#This Row],[HOEV]]*Voorraadlijst[[#This Row],[KOSTEN]] -> 312
B10: PW98762 | C10: Artikel 6 | D10: Per stuk | E10: 7 | F10: 50 | G10: =Voorraadlijst[[#This Row],[HOEV]]*Voorraadlijst[[#This Row],[KOSTEN]] -> 350
B11: BM87684 | C11: Artikel 7 | D11: Per stuk | E11: 10 | F11: 10 | G11: =Voorraadlijst[[#This Row],[HOEV]]*Voorraadlijst[[#This Row],[KOSTEN]] -> 100
B12: BH67655 | C12: Artikel 8 | D12: Per stuk | E12: 19 | F12: 3 | G12: =Voorraadlijst[[#This Row],[HOEV]]*Voorraadlijst[[#This Row],[KOSTEN]] -> 57
B13: WT98768 | C13: Artikel 9 | D13: Pakket (5 stuks) | E13: 20 | F13: 14 | G13: =Voorraadlijst[[#This Row],[HOEV]]*Voorraadlijst[[#This Row],[KOSTEN]] -> 280
B14: TS3456 | C14: Artikel 10 | D14: Per stuk | E14: 15 | F14: 60 | G14: =Voorraadlijst[[#This Row],[HOEV]]*Voorraadlijst[[#This Row],[KOSTEN]] -> 900
B15: WDG123 | C15: Artikel 11 | D15: Per stuk | E15: 25 | F15: 8 | G15: =Voorraadlijst[[#This Row],[HOEV]]*Voorraadlijst[[#This Row],[KOSTEN]] -> 200

Sheet STOCKLIJST 2021
B1: STOCKLIJST
B2: TOTALE VOORRAADWAARDE: | C2: VOORRAADARTIKELEN: | D2: OPSLAGLOCATIE OPZOEKEN
B3: =SUM(Voorraadlijst3[VOORRAADWAARDE]) -> 3108.37 | C3: =COUNTA(Voorraadlijst3[BESCHRIJVING]) -> 11
B4: ARTIKEL | C4: BESCHRIJVING | D4: EENHEID | E4: HOEV | F4: KOSTEN | G4: VOORRAADWAARDE
B5: EIK OP BOOL | C5: EIKEN PLANKEN | D5: Per stuk | E5: 20 | F5: 30 | G5: =Voorraadlijst3[[#This Row],[HOEV]]*Voorraadlijst3[[#This Row],[KOSTEN]] -> 600
B6: Finixia schuurschijven | C6: 150MM p80 | D6: DOOS 100ST | E6: 3 | F6: 27.79 | G6: =Voorraadlijst3[[#This Row],[HOEV]]*Voorraadlijst3[[#This Row],[KOSTEN]] -> 83.37
B7: WDG456 | C7: Artikel 3 | D7: Per stuk | E7: 10 | F7: 5 | G7: =Voorraadlijst3[[#This Row],[HOEV]]*Voorraadlijst3[[#This Row],[KOSTEN]] -> 50
B8: YE98767 | C8: Artikel 4 | D8: Doos (10 stuks) | E8: 40 | F8: 15 | G8: =Voorraadlijst3[[#This Row],[HOEV]]*Voorraadlijst3[[#This Row],[KOSTEN]] -> 600
B9: XR23423 | C9: Artikel 5 | D9: Per stuk | E9: 3 | F9: 26 | G9: =Voorraadlijst3[[#This Row],[HOEV]]*Voorraadlijst3[[#This Row],[KOSTEN]] -> 78
B10: PW98762 | C10: Artikel 6 | D10: Per stuk | E10: 4 | F10: 50 | G10: =Voorraadlijst3[[#This Row],[HOEV]]*Voorraadlijst3[[#This Row],[KOSTEN]] -> 200
B11: BM87684 | C11: Artikel 7 | D11: Per stuk | E11: 10 | F11: 10 | G11: =Voorraadlijst3[[#This Row],[HOEV]]*Voorraadlijst3[[#This Row],[KOSTEN]] -> 100
B12: BH67655 | C12: Artikel 8 | D12: Per stuk | E12: 19 | F12: 3 | G12: =Voorraadlijst3[[#This Row],[HOEV]]*Voorraadlijst3[[#This Row],[KOSTEN]] -> 57
B13: WT98768 | C13: Artikel 9 | D13: Pakket (5 stuks) | E13: 20 | F13: 14 | G13: =Voorraadlijst3[[#This Row],[HOEV]]*Voorraadlijst3[[#This Row],[KOSTEN]] -> 280
B14: TS3456 | C14: Artikel 10 | D14: Per stuk | E14: 15 | F14: 60 | G14: =Voorraadlijst3[[#This Row],[HOEV]]*Voorraadlijst3[[#This Row],[KOSTEN]] -> 900
B15: WDG123 | C15: Artikel 11 | D15: Per stuk | E15: 20 | F15: 8 | G15: =Voorraadlijst3[[#This Row],[HOEV]]*Voorraadlijst3[[#This Row],[KOSTEN]] -> 160

Sheet VERBRUIK 2021
C1: VERBRUIK
C2: TOTALE VOORRAADWAARDE: | D2: VOORRAADARTIKELEN:
C3: =SUM(Voorraadlijst34[VOORRAADWAARDE]) -> 60 | D3: =COUNTA(Voorraadlijst34[BESCHRIJVING]) -> 4
A4: KLANT | C4: ARTIKEL | D4: BESCHRIJVING | E4: EENHEID | F4: HOEV | G4: KOSTEN | H4: VOORRAADWAARDE
C5: EIK OP BOOL | D5: =IFERROR(INDEX(Voorraadlijst3[],MATCH(Voorraadlijst34[[#This Row],[ARTIKEL]],Voorraadlijst3[ARTIKEL],0),2),"") -> EIKEN PLANKEN | E5: =IFERROR(INDEX(Voorraadlijst3[],MATCH(Voorraadlijst34[[#This Row],[ARTIKEL]],Voorraadlijst3[ARTIKEL],0),3),"") -> Per stuk | F5: 2 | G5: =IFERROR(INDEX(Voorraadlijst3[],MATCH(Voorraadlijst34[[#This Row],[ARTIKEL]],Voorraadlijst3[ARTIKEL],0),5),"") -> 30 | H5: =IFERROR(Voorraadlijst34[[#This Row],[HOEV]]*Voorraadlijst34[[#This Row],[KOSTEN]],"") -> 60
D6: =IFERROR(INDEX(Voorraadlijst3[],MATCH(Voorraadlijst34[[#This Row],[ARTIKEL]],Voorraadlijst3[ARTIKEL],0),2),"") ->  | E6: =IFERROR(INDEX(Voorraadlijst3[],MATCH(Voorraadlijst34[[#This Row],[ARTIKEL]],Voorraadlijst3[ARTIKEL],0),3),"") ->  | G6: =IFERROR(INDEX(Voorraadlijst3[],MATCH(Voorraadlijst34[[#This Row],[ARTIKEL]],Voorraadlijst3[ARTIKEL],0),5),"") ->  | H6: =IFERROR(Voorraadlijst34[[#This Row],[HOEV]]*Voorraadlijst34[[#This Row],[KOSTEN]],"") -> 
D7: =IFERROR(INDEX(Voorraadlijst3[],MATCH(Voorraadlijst34[[#This Row],[ARTIKEL]],Voorraadlijst3[ARTIKEL],0),2),"") ->  | E7: =IFERROR(INDEX(Voorraadlijst3[],MATCH(Voorraadlijst34[[#This Row],[ARTIKEL]],Voorraadlijst3[ARTIKEL],0),3),"") ->  | G7: =IFERROR(INDEX(Voorraadlijst3[],MATCH(Voorraadlijst34[[#This Row],[ARTIKEL]],Voorraadlijst3[ARTIKEL],0),5),"") ->  | H7: =IFERROR(Voorraadlijst34[[#This Row],[HOEV]]*Voorraadlijst34[[#This Row],[KOSTEN]],"") -> 
D8: =IFERROR(INDEX(Voorraadlijst3[],MATCH(Voorraadlijst34[[#This Row],[ARTIKEL]],Voorraadlijst3[ARTIKEL],0),2),"") ->  | E8: =IFERROR(INDEX(Voorraadlijst3[],MATCH(Voorraadlijst34[[#This Row],[ARTIKEL]],Voorraadlijst3[ARTIKEL],0),3),"") ->  | G8: =IFERROR(INDEX(Voorraadlijst3[],MATCH(Voorraadlijst34[[#This Row],[ARTIKEL]],Voorraadlijst3[ARTIKEL],0),5),"") ->  | H8: =IFERROR(Voorraadlijst34[[#This Row],[HOEV]]*Voorraadlijst34[[#This Row],[KOSTEN]],"") -> 
